[Event "Titled Tuesday Blitz July 18 Late 2023"]
[White "Tristan, Leonardo"]
[Black "Vlassov, Nikolai"]
[WhiteFideId "113816"]
[BlackFideId "4103360"]
[WhiteElo "2790"]
[BlackElo "2582"]
[Result "1-0"]
[Round "7"]
[TimeControl "180+2"]
[Date "2023.07.18"]
[WhiteClock "0:00:05"]
[BlackClock "0:00:00"]
[Board "33"]

1. d4 {[%clk 0:03:00]}  Nf6 {[%clk 0:02:57]} 2. Nf3 {[%clk 0:03:01]}  e6 {[%clk 0:02:57]} 3. Bf4 {[%clk 0:03:01]}  c5 {[%clk 0:02:57]} 4. c3 {[%clk 0:03:01]}  b6 {[%clk 0:02:57]} 5. e3 {[%clk 0:03:00]}  Bb7 {[%clk 0:02:57]} 6. Nbd2 {[%clk 0:03:01]}  Be7 {[%clk 0:02:58]} 7. h3 {[%clk 0:03:01]}  h6 {[%clk 0:02:57]} 8. Bd3 {[%clk 0:02:59]}  d6 {[%clk 0:02:58]} 9. Qe2 {[%clk 0:02:58]}  Nbd7 {[%clk 0:02:58]} 10. e4 {[%clk 0:02:53]}  Qc7 {[%clk 0:02:52]} 11. Bh2 {[%clk 0:02:47]}  a6 {[%clk 0:02:34]} 12. e5 {[%clk 0:02:23]}  dxe5 {[%clk 0:02:26]} 13. Nxe5 {[%clk 0:02:24]}  Nxe5 {[%clk 0:02:22]} 14. Bxe5 {[%clk 0:02:24]}  Qc6 {[%clk 0:02:07]} 15. Bxf6 {[%clk 0:02:10]}  Bxf6 {[%clk 0:02:05]} 16. Be4 {[%clk 0:02:10]}  Qc7 {[%clk 0:02:01]} 17. dxc5 {[%clk 0:01:53]}  bxc5 {[%clk 0:01:56]} 18. Nc4 {[%clk 0:01:15]}  O-O {[%clk 0:01:51]} 19. Bxb7 {[%clk 0:01:15]}  Qxb7 {[%clk 0:01:51]} 20. O-O {[%clk 0:01:15]}  Rad8 {[%clk 0:01:49]} 21. Rfd1 {[%clk 0:01:14]}  Rd5 {[%clk 0:01:45]} 22. Ne3 {[%clk 0:01:14]}  Rxd1+ {[%clk 0:01:38]} 23. Rxd1 {[%clk 0:01:14]}  Qb5 {[%clk 0:01:31]} 24. Nc4 {[%clk 0:01:06]}  Rd8 {[%clk 0:01:19]} 25. Rxd8+ {[%clk 0:01:01]}  Bxd8 {[%clk 0:01:18]} 26. Qd3 {[%clk 0:01:01]}  Bf6 {[%clk 0:01:17]} 27. b3 {[%clk 0:00:50]}  a5 {[%clk 0:01:06]} 28. Qf3 {[%clk 0:00:44]}  Kh7 {[%clk 0:00:51]} 29. Qe4+ {[%clk 0:00:15]}  g6 {[%clk 0:00:48]} 30. Qf3 {[%clk 0:00:15]}  Kg7 {[%clk 0:00:47]} 31. Nd6 {[%clk 0:00:16]}  Qd7 {[%clk 0:00:42]} 32. Ne4 {[%clk 0:00:08]}  Be7 {[%clk 0:00:42]} 33. Qe3 {[%clk 0:00:08]}  f5 {[%clk 0:00:38]} 34. Nd2 {[%clk 0:00:06]}  Qd5 {[%clk 0:00:29]} 35. Nc4 {[%clk 0:00:06]}  Bf6 {[%clk 0:00:25]} 36. Nxa5 {[%clk 0:00:05]}  g5 {[%clk 0:00:14]} 37. Nc4 {[%clk 0:00:05]}  f4 {[%clk 0:00:11]} 38. Qd2 {[%clk 0:00:05]}  Qe4 {[%clk 0:00:09]} 39. Kf1 {[%clk 0:00:03]}  h5 {[%clk 0:00:06]} 40. f3 {[%clk 0:00:03]}  Qb1+ {[%clk 0:00:06]} 41. Ke2 {[%clk 0:00:04]}  g4 {[%clk 0:00:06]} 42. hxg4 {[%clk 0:00:04]}  hxg4 {[%clk 0:00:06]} 43. fxg4 {[%clk 0:00:05]}  Qg1 {[%clk 0:00:05]} 44. Kf3 {[%clk 0:00:04]}  Qf1+ {[%clk 0:00:04]} 45. Qf2 {[%clk 0:00:05]}  Qd3+ {[%clk 0:00:04]} 46. Kxf4 {[%clk 0:00:05]}  Kg6 {[%clk 0:00:00]} 47. Ne5+ {[%clk 0:00:05]} 1-0


[Site "https://www.chess.com"]

[Event "Titled Tuesday Blitz July 18 Late 2023"]
[White "Bartel, Michal"]
[Black "Elsa167"]
[WhiteFideId "1119257"]
[WhiteElo "2579"]
[BlackElo "2789"]
[Result "0-1"]
[Round "7"]
[TimeControl "180+2"]
[Date "2023.07.18"]
[WhiteClock "0:00:20"]
[BlackClock "0:00:07"]
[Board "34"]

1. e4 {[%clk 0:03:00]}  c5 {[%clk 0:02:56]} 2. Ne2 {[%clk 0:03:00]}  Nc6 {[%clk 0:02:54]} 3. g3 {[%clk 0:03:01]}  h5 {[%clk 0:02:53]} 4. h4 {[%clk 0:02:58]}  g6 {[%clk 0:02:52]} 5. Bg2 {[%clk 0:02:58]}  Bg7 {[%clk 0:02:53]} 6. c3 {[%clk 0:02:57]}  e5 {[%clk 0:02:52]} 7. d3 {[%clk 0:02:56]}  d6 {[%clk 0:02:52]} 8. Be3 {[%clk 0:02:56]}  Nf6 {[%clk 0:02:47]} 9. Nd2 {[%clk 0:02:53]}  Ng4 {[%clk 0:02:45]} 10. Nf1 {[%clk 0:02:52]}  Nxe3 {[%clk 0:02:43]} 11. Nxe3 {[%clk 0:02:52]}  Ne7 {[%clk 0:02:38]} 12. f4 {[%clk 0:02:46]}  exf4 {[%clk 0:02:28]} 13. Nxf4 {[%clk 0:02:45]}  Be5 {[%clk 0:02:23]} 14. O-O {[%clk 0:02:42]}  Bd7 {[%clk 0:02:10]} 15. d4 {[%clk 0:02:40]}  cxd4 {[%clk 0:02:09]} 16. cxd4 {[%clk 0:02:41]}  Bg7 {[%clk 0:02:10]} 17. Qb3 {[%clk 0:02:10]}  O-O {[%clk 0:02:06]} 18. Rad1 {[%clk 0:02:08]}  Qb6 {[%clk 0:01:54]} 19. Qxb6 {[%clk 0:01:58]}  axb6 {[%clk 0:01:55]} 20. a3 {[%clk 0:01:58]}  Ra4 {[%clk 0:01:55]} 21. Nc2 {[%clk 0:01:30]}  Rc4 {[%clk 0:01:47]} 22. Rf2 {[%clk 0:01:28]}  Rfc8 {[%clk 0:01:32]} 23. Rdd2 {[%clk 0:01:28]}  Ba4 {[%clk 0:01:30]} 24. Ne3 {[%clk 0:01:19]}  Rxd4 {[%clk 0:01:25]} 25. Ned5 {[%clk 0:01:18]}  Nxd5 {[%clk 0:01:21]} 26. Nxd5 {[%clk 0:01:17]}  Rxd2 {[%clk 0:01:17]} 27. Rxd2 {[%clk 0:01:17]}  Rc2 {[%clk 0:01:17]} 28. Rxc2 {[%clk 0:01:11]}  Bxc2 {[%clk 0:01:18]} 29. b4 {[%clk 0:01:03]}  Bb2 {[%clk 0:01:18]} 30. Ne7+ {[%clk 0:00:56]}  Kg7 {[%clk 0:01:14]} 31. Nc8 {[%clk 0:00:56]}  Bxa3 {[%clk 0:01:00]} 32. Nxd6 {[%clk 0:00:55]}  Bxb4 {[%clk 0:01:00]} 33. Nxb7 {[%clk 0:00:56]}  Kf6 {[%clk 0:00:56]} 34. Nd8 {[%clk 0:00:49]}  Bc5+ {[%clk 0:00:45]} 35. Kf1 {[%clk 0:00:47]}  Bb3 {[%clk 0:00:34]} 36. Ke2 {[%clk 0:00:44]}  Ke5 {[%clk 0:00:35]} 37. Bf3 {[%clk 0:00:37]}  Bc4+ {[%clk 0:00:31]} 38. Ke1 {[%clk 0:00:34]}  Kd4 {[%clk 0:00:29]} 39. Kd2 {[%clk 0:00:29]}  Bb4+ {[%clk 0:00:25]} 40. Kc2 {[%clk 0:00:29]}  Bd6 {[%clk 0:00:20]} 41. g4 {[%clk 0:00:26]}  hxg4 {[%clk 0:00:20]} 42. Bxg4 {[%clk 0:00:26]}  Kxe4 {[%clk 0:00:18]} 43. h5 {[%clk 0:00:26]}  gxh5 {[%clk 0:00:18]} 44. Bxh5 {[%clk 0:00:27]}  f5 {[%clk 0:00:17]} 45. Kc3 {[%clk 0:00:27]}  Bd5 {[%clk 0:00:17]} 46. Kd2 {[%clk 0:00:24]}  b5 {[%clk 0:00:13]} 47. Nf7 {[%clk 0:00:22]}  Bf4+ {[%clk 0:00:12]} 48. Ke2 {[%clk 0:00:22]}  b4 {[%clk 0:00:12]} 49. Bf3+ {[%clk 0:00:17]}  Kd4 {[%clk 0:00:12]} 50. Bxd5 {[%clk 0:00:18]}  Kxd5 {[%clk 0:00:12]} 51. Kd3 {[%clk 0:00:18]}  Ke6 {[%clk 0:00:07]} 52. Nd8+ {[%clk 0:00:18]}  Kd5 {[%clk 0:00:06]} 53. Nf7 {[%clk 0:00:18]}  Bd6 {[%clk 0:00:06]} 54. Nh6 {[%clk 0:00:18]}  f4 {[%clk 0:00:06]} 55. Ng4 {[%clk 0:00:18]}  Ke6 {[%clk 0:00:05]} 56. Nf2 {[%clk 0:00:17]}  Kf5 {[%clk 0:00:05]} 57. Ne4 {[%clk 0:00:18]}  Be7 {[%clk 0:00:06]} 58. Nd2 {[%clk 0:00:18]}  Kg4 {[%clk 0:00:06]} 59. Ke4 {[%clk 0:00:18]}  Kg3 {[%clk 0:00:06]} 60. Nf1+ {[%clk 0:00:18]}  Kf2 {[%clk 0:00:07]} 61. Nd2 {[%clk 0:00:18]}  Ke2 {[%clk 0:00:07]} 62. Nf3 {[%clk 0:00:19]}  Kd1 {[%clk 0:00:07]} 63. Kxf4 {[%clk 0:00:19]}  b3 {[%clk 0:00:07]} 64. Nd4 {[%clk 0:00:19]}  b2 {[%clk 0:00:07]} 65. Nb5 {[%clk 0:00:18]}  Bb4 {[%clk 0:00:05]} 66. Na3 {[%clk 0:00:16]}  Bxa3 {[%clk 0:00:05]} 67. Kg3 {[%clk 0:00:16]}  b1=Q {[%clk 0:00:06]} 68. Kh2 {[%clk 0:00:17]}  Qg6 {[%clk 0:00:06]} 69. Kh1 {[%clk 0:00:18]}  Ke2 {[%clk 0:00:06]} 70. Kh2 {[%clk 0:00:19]}  Kf3 {[%clk 0:00:07]} 71. Kh3 {[%clk 0:00:20]}  Qg3# {[%clk 0:00:07]} 0-1


[Site "https://www.chess.com"]

[Event "Titled Tuesday Blitz July 18 Late 2023"]
[White "Diano, Eden"]
[Black "Leiva, Gianmarco"]
[WhiteFideId "5203708"]
[BlackFideId "3804399"]
[WhiteElo "2567"]
[BlackElo "2729"]
[Result "1-0"]
[Round "7"]
[TimeControl "180+2"]
[Date "2023.07.18"]
[WhiteClock "0:01:25"]
[BlackClock "0:00:00"]
[Board "37"]

1. d4 {[%clk 0:02:59]}  Nf6 {[%clk 0:02:55]} 2. c4 {[%clk 0:02:59]}  e6 {[%clk 0:02:55]} 3. a3 {[%clk 0:02:59]}  c5 {[%clk 0:02:51]} 4. e3 {[%clk 0:02:55]}  b6 {[%clk 0:02:49]} 5. Nc3 {[%clk 0:02:50]}  cxd4 {[%clk 0:02:37]} 6. exd4 {[%clk 0:02:50]}  Bb7 {[%clk 0:02:33]} 7. Bg5 {[%clk 0:02:48]}  h6 {[%clk 0:02:30]} 8. Bxf6 {[%clk 0:02:47]}  Qxf6 {[%clk 0:02:30]} 9. Nf3 {[%clk 0:02:47]}  Bxf3 {[%clk 0:02:27]} 10. Qxf3 {[%clk 0:02:47]}  Qxf3 {[%clk 0:02:26]} 11. gxf3 {[%clk 0:02:47]}  Nc6 {[%clk 0:02:27]} 12. O-O-O {[%clk 0:02:47]}  Rc8 {[%clk 0:02:10]} 13. Kb1 {[%clk 0:02:37]}  Na5 {[%clk 0:02:04]} 14. d5 {[%clk 0:02:27]}  Nxc4 {[%clk 0:02:02]} 15. dxe6 {[%clk 0:02:26]}  fxe6 {[%clk 0:01:51]} 16. f4 {[%clk 0:02:26]}  Nxa3+ {[%clk 0:01:48]} 17. Ka2 {[%clk 0:02:24]}  Be7 {[%clk 0:01:30]} 18. Kb3 {[%clk 0:02:23]}  Rf8 {[%clk 0:00:50]} 19. bxa3 {[%clk 0:02:10]}  Rxf4 {[%clk 0:00:50]} 20. Bb5 {[%clk 0:02:01]}  Rc7 {[%clk 0:00:47]} 21. Rxd7 {[%clk 0:01:59]}  Rxd7 {[%clk 0:00:42]} 22. Rd1 {[%clk 0:01:59]}  Rf3 {[%clk 0:00:28]} 23. Rxd7 {[%clk 0:01:58]}  Kf8 {[%clk 0:00:24]} 24. Rxa7 {[%clk 0:01:56]}  Rxf2 {[%clk 0:00:15]} 25. Rb7 {[%clk 0:01:50]}  Bc5 {[%clk 0:00:14]} 26. Bc4 {[%clk 0:01:46]}  e5 {[%clk 0:00:07]} 27. a4 {[%clk 0:01:39]}  Bd4 {[%clk 0:00:06]} 28. Ne4 {[%clk 0:01:34]}  Rb2+ {[%clk 0:00:05]} 29. Ka3 {[%clk 0:01:34]}  Rxh2 {[%clk 0:00:04]} 30. Kb4 {[%clk 0:01:29]}  Rh4 {[%clk 0:00:02]} 31. Bd5 {[%clk 0:01:27]}  Bc5+ {[%clk 0:00:01]} 32. Kb5 {[%clk 0:01:28]}  Bd4 {[%clk 0:00:01]} 33. Nd6 {[%clk 0:01:27]}  Rh1 {[%clk 0:00:01]} 34. Bxh1 {[%clk 0:01:26]}  g5 {[%clk 0:00:01]} 35. Bd5 {[%clk 0:01:25]}  e4 {[%clk 0:00:00]} 36. Nxe4 {[%clk 0:01:25]} 1-0


[Site "https://www.chess.com"]

[Event "Titled Tuesday Blitz July 18 Late 2023"]
[White "Quintiliano Pinto, Renato R."]
[Black "Marosi, Levente"]
[WhiteFideId "2117568"]
[BlackFideId "747181"]
[WhiteElo "2702"]
[BlackElo "2545"]
[Result "0-1"]
[Round "7"]
[TimeControl "180+2"]
[Date "2023.07.18"]
[WhiteClock "0:00:14"]
[BlackClock "0:00:23"]
[Board "42"]

1. Nf3 {[%clk 0:03:00]}  Nf6 {[%clk 0:02:59]} 2. c4 {[%clk 0:02:59]}  g6 {[%clk 0:02:59]} 3. b3 {[%clk 0:02:59]}  Bg7 {[%clk 0:02:59]} 4. Bb2 {[%clk 0:03:00]}  O-O {[%clk 0:02:59]} 5. g3 {[%clk 0:03:01]}  d6 {[%clk 0:02:59]} 6. d4 {[%clk 0:03:01]}  Nbd7 {[%clk 0:02:58]} 7. Bg2 {[%clk 0:03:01]}  Re8 {[%clk 0:02:58]} 8. O-O {[%clk 0:03:00]}  e5 {[%clk 0:02:57]} 9. dxe5 {[%clk 0:03:01]}  Ng4 {[%clk 0:02:57]} 10. Nc3 {[%clk 0:03:01]}  dxe5 {[%clk 0:02:56]} 11. e4 {[%clk 0:02:51]}  c6 {[%clk 0:02:54]} 12. h3 {[%clk 0:02:49]}  Nh6 {[%clk 0:02:55]} 13. Qe2 {[%clk 0:02:46]}  f6 {[%clk 0:02:54]} 14. Rfd1 {[%clk 0:02:44]}  Nf7 {[%clk 0:02:54]} 15. a3 {[%clk 0:02:37]}  a5 {[%clk 0:02:53]} 16. c5 {[%clk 0:02:33]}  Qe7 {[%clk 0:02:51]} 17. b4 {[%clk 0:02:33]}  axb4 {[%clk 0:02:52]} 18. axb4 {[%clk 0:02:34]}  Rxa1 {[%clk 0:02:52]} 19. Rxa1 {[%clk 0:02:30]}  Nf8 {[%clk 0:02:43]} 20. Na4 {[%clk 0:02:23]}  Be6 {[%clk 0:02:36]} 21. Nb6 {[%clk 0:02:21]}  Nd7 {[%clk 0:02:28]} 22. Nc4 {[%clk 0:02:21]}  Nf8 {[%clk 0:02:05]} 23. Ra7 {[%clk 0:02:14]}  Rd8 {[%clk 0:02:01]} 24. Na5 {[%clk 0:02:07]}  Rd7 {[%clk 0:02:01]} 25. Nd2 {[%clk 0:02:00]}  Qd8 {[%clk 0:01:28]} 26. Ndc4 {[%clk 0:01:21]}  Qb8 {[%clk 0:01:23]} 27. Rxb7 {[%clk 0:01:09]}  Rxb7 {[%clk 0:01:22]} 28. Nxb7 {[%clk 0:01:10]}  Qxb7 {[%clk 0:01:23]} 29. Na5 {[%clk 0:01:05]}  Qxb4 {[%clk 0:01:19]} 30. Nxc6 {[%clk 0:01:05]}  Qxc5 {[%clk 0:01:17]} 31. Qa6 {[%clk 0:01:05]}  Bc4 {[%clk 0:01:06]} 32. Qa8 {[%clk 0:00:47]}  Bb5 {[%clk 0:00:54]} 33. Nd8 {[%clk 0:00:39]}  Nxd8 {[%clk 0:00:50]} 34. Qxd8 {[%clk 0:00:40]}  Qb4 {[%clk 0:00:43]} 35. Bc3 {[%clk 0:00:21]}  Qxc3 {[%clk 0:00:34]} 36. Qd5+ {[%clk 0:00:21]}  Kh8 {[%clk 0:00:34]} 37. Qxb5 {[%clk 0:00:22]}  Qe1+ {[%clk 0:00:26]} 38. Qf1 {[%clk 0:00:21]}  Qxf1+ {[%clk 0:00:26]} 39. Kxf1 {[%clk 0:00:22]}  Ne6 {[%clk 0:00:26]} 40. Ke2 {[%clk 0:00:22]}  Kg8 {[%clk 0:00:26]} 41. Kd3 {[%clk 0:00:23]}  Bf8 {[%clk 0:00:27]} 42. h4 {[%clk 0:00:22]}  Bc5 {[%clk 0:00:25]} 43. Ke2 {[%clk 0:00:22]}  Kf7 {[%clk 0:00:26]} 44. Bh3 {[%clk 0:00:21]}  Ke7 {[%clk 0:00:26]} 45. Kf3 {[%clk 0:00:16]}  Nd4+ {[%clk 0:00:25]} 46. Kg2 {[%clk 0:00:16]}  h6 {[%clk 0:00:25]} 47. Bc8 {[%clk 0:00:16]}  Nb5 {[%clk 0:00:24]} 48. f3 {[%clk 0:00:16]}  Nd6 {[%clk 0:00:23]} 49. Ba6 {[%clk 0:00:16]}  g5 {[%clk 0:00:23]} 50. hxg5 {[%clk 0:00:16]}  fxg5 {[%clk 0:00:23]} 51. Bd3 {[%clk 0:00:16]}  Kf6 {[%clk 0:00:23]} 52. Bc2 {[%clk 0:00:16]}  Be3 {[%clk 0:00:24]} 53. Kh3 {[%clk 0:00:16]}  Ne8 {[%clk 0:00:23]} 54. Bb1 {[%clk 0:00:17]}  Ng7 {[%clk 0:00:23]} 55. Ba2 {[%clk 0:00:18]}  Nh5 {[%clk 0:00:22]} 56. Kg4 {[%clk 0:00:18]}  Ng7 {[%clk 0:00:22]} 57. Bb3 {[%clk 0:00:18]}  h5+ {[%clk 0:00:22]} 58. Kh3 {[%clk 0:00:19]}  Bd2 {[%clk 0:00:22]} 59. Ba4 {[%clk 0:00:19]}  Ne6 {[%clk 0:00:22]} 60. Be8 {[%clk 0:00:19]}  Ng7 {[%clk 0:00:20]} 61. Bc6 {[%clk 0:00:19]}  Kg6 {[%clk 0:00:21]} 62. Bd7 {[%clk 0:00:19]}  Kh6 {[%clk 0:00:21]} 63. Bc6 {[%clk 0:00:19]}  Ne6 {[%clk 0:00:21]} 64. Be8 {[%clk 0:00:19]}  Nd4 {[%clk 0:00:21]} 65. Kg2 {[%clk 0:00:18]}  g4 {[%clk 0:00:21]} 66. fxg4 {[%clk 0:00:18]}  hxg4 {[%clk 0:00:22]} 67. Bd7 {[%clk 0:00:18]}  Kg5 {[%clk 0:00:23]} 68. Bc8 {[%clk 0:00:19]}  Bc3 {[%clk 0:00:23]} 69. Bd7 {[%clk 0:00:19]}  Nf3 {[%clk 0:00:23]} 70. Bc8 {[%clk 0:00:18]}  Nd2 {[%clk 0:00:23]} 71. Bf5 {[%clk 0:00:18]}  Bd4 {[%clk 0:00:22]} 72. Kh2 {[%clk 0:00:17]}  Nc4 {[%clk 0:00:20]} 73. Bh7 {[%clk 0:00:15]}  Nd6 {[%clk 0:00:20]} 74. Kh1 {[%clk 0:00:14]}  Ne8 {[%clk 0:00:21]} 75. Bg8 {[%clk 0:00:15]}  Nf6 {[%clk 0:00:21]} 76. Bd5 {[%clk 0:00:14]}  Nxd5 {[%clk 0:00:22]} 77. exd5 {[%clk 0:00:15]}  Kf6 {[%clk 0:00:22]} 78. d6 {[%clk 0:00:16]}  Ke6 {[%clk 0:00:22]} 79. d7 {[%clk 0:00:14]}  Kxd7 {[%clk 0:00:23]} 0-1


[Site "https://www.chess.com"]

[Event "Titled Tuesday Blitz July 18 Late 2023"]
[White "Mattheii"]
[Black "Velikanov, Alexander"]
[BlackFideId "2039290"]
[WhiteElo "2540"]
[BlackElo "2700"]
[Result "0-1"]
[Round "7"]
[TimeControl "180+2"]
[Date "2023.07.18"]
[WhiteClock "0:00:05"]
[BlackClock "0:00:10"]
[Board "43"]

1. e4 {[%clk 0:02:51]}  e6 {[%clk 0:02:53]} 2. d4 {[%clk 0:02:51]}  d5 {[%clk 0:02:52]} 3. Nc3 {[%clk 0:02:51]}  Nf6 {[%clk 0:02:51]} 4. Bg5 {[%clk 0:02:51]}  dxe4 {[%clk 0:02:50]} 5. Nxe4 {[%clk 0:02:47]}  Be7 {[%clk 0:02:50]} 6. Nxf6+ {[%clk 0:02:45]}  gxf6 {[%clk 0:02:51]} 7. Be3 {[%clk 0:02:44]}  b6 {[%clk 0:02:49]} 8. Qf3 {[%clk 0:02:41]}  c6 {[%clk 0:02:49]} 9. O-O-O {[%clk 0:02:41]}  Bb7 {[%clk 0:02:49]} 10. h4 {[%clk 0:02:38]}  Nd7 {[%clk 0:02:49]} 11. h5 {[%clk 0:02:32]}  f5 {[%clk 0:02:49]} 12. Nh3 {[%clk 0:02:29]}  Bf6 {[%clk 0:02:47]} 13. Nf4 {[%clk 0:02:15]}  Qc7 {[%clk 0:02:47]} 14. h6 {[%clk 0:02:09]}  O-O-O {[%clk 0:02:36]} 15. Nh5 {[%clk 0:02:07]}  c5 {[%clk 0:02:34]} 16. Qe2 {[%clk 0:01:54]}  Bxd4 {[%clk 0:02:31]} 17. Bxd4 {[%clk 0:01:51]}  cxd4 {[%clk 0:02:32]} 18. Rxd4 {[%clk 0:01:51]}  Ne5 {[%clk 0:02:18]} 19. Rhh4 {[%clk 0:01:40]}  Ng4 {[%clk 0:02:09]} 20. Rc4 {[%clk 0:01:32]}  Bc6 {[%clk 0:02:03]} 21. g3 {[%clk 0:01:16]}  Rd5 {[%clk 0:01:03]} 22. b4 {[%clk 0:00:53]}  Rhd8 {[%clk 0:00:37]} 23. b5 {[%clk 0:00:40]}  Rd1+ {[%clk 0:00:24]} 24. Kb2 {[%clk 0:00:23]}  Qe5+ {[%clk 0:00:15]} 25. Rc3 {[%clk 0:00:12]}  Re1 {[%clk 0:00:03]} 26. Qxe5 {[%clk 0:00:08]}  Nxe5 {[%clk 0:00:04]} 27. Bg2 {[%clk 0:00:06]}  Kc7 {[%clk 0:00:02]} 28. Bxc6 {[%clk 0:00:06]}  Rd2 {[%clk 0:00:02]} 29. Bg2+ {[%clk 0:00:05]}  Kd6 {[%clk 0:00:03]} 30. f4 {[%clk 0:00:03]}  Nd7 {[%clk 0:00:03]} 31. Bf3 {[%clk 0:00:03]}  Nc5 {[%clk 0:00:03]} 32. Rc4 {[%clk 0:00:03]}  Rf2 {[%clk 0:00:02]} 33. Rc3 {[%clk 0:00:03]}  Na4+ {[%clk 0:00:02]} 34. Kb3 {[%clk 0:00:03]}  Nxc3 {[%clk 0:00:02]} 35. Bb7 {[%clk 0:00:03]}  Ne4 {[%clk 0:00:03]} 36. Ng7 {[%clk 0:00:03]}  Rf3+ {[%clk 0:00:03]} 37. Kc4 {[%clk 0:00:04]}  Rxg3 {[%clk 0:00:03]} 38. Kd4 {[%clk 0:00:04]}  Rg6 {[%clk 0:00:03]} 39. Bxe4 {[%clk 0:00:05]}  Rxe4+ {[%clk 0:00:03]} 40. Kd3 {[%clk 0:00:05]}  Rg3+ {[%clk 0:00:04]} 41. Kd2 {[%clk 0:00:06]}  Rd4+ {[%clk 0:00:05]} 42. Kc1 {[%clk 0:00:06]}  Rb4 {[%clk 0:00:06]} 43. Kd2 {[%clk 0:00:06]}  Rg2+ {[%clk 0:00:06]} 44. Kc3 {[%clk 0:00:06]}  Rxb5 {[%clk 0:00:06]} 45. a4 {[%clk 0:00:06]}  Rc5+ {[%clk 0:00:07]} 46. Kd3 {[%clk 0:00:07]}  Rgxc2 {[%clk 0:00:08]} 47. Nh5 {[%clk 0:00:07]}  R5c3+ {[%clk 0:00:08]} 48. Kd4 {[%clk 0:00:08]}  Rc4+ {[%clk 0:00:09]} 49. Ke3 {[%clk 0:00:07]}  Ke7 {[%clk 0:00:08]} 50. Ng3 {[%clk 0:00:07]}  f6 {[%clk 0:00:08]} 51. Rh1 {[%clk 0:00:06]}  R4c3+ {[%clk 0:00:08]} 52. Kd4 {[%clk 0:00:06]}  Kd6 {[%clk 0:00:09]} 53. Ne2 {[%clk 0:00:05]}  e5+ {[%clk 0:00:10]} 54. fxe5+ {[%clk 0:00:05]}  fxe5# {[%clk 0:00:10]} 0-1


[Site "https://www.chess.com"]